bitfinex-derivatives/quotes_SOLF0:USTF0_20251210
["timestamp","ask_amount","ask_price","bid_price","bid_amount"]
[1765396946525,0.05269115,137.91,137.87,0.04839032]
[1765396947319,6.57829115,137.91,137.87,0.04839032]
[1765396947515,0.05269115,137.91,137.87,0.04839032]
[1765396947915,6.57839115,137.91,137.87,0.04839032]
[1765396948128,0.05269115,137.91,137.87,0.04839032]
[1765396948629,0.05269115,137.91,137.87,101.58069032]
[1765396948826,2.71174791,137.99,137.9,101.5104]
[1765396949028,2.71174791,137.99,137.89,101.5211]
[1765396949332,2.71174791,137.99,137.9,101.5131]
[1765396950028,0.04776889,137.96,137.93,0.04615533]
[1765396950625,6.57096889,137.96,137.93,0.04615533]
[1765396950930,0.04776889,137.96,137.93,0.04615533]
[1765396955030,101.49,137.94,137.85,61.48]
[1765396955735,108.48592897,137.95,137.85,61.48]
[1765396956232,0.05489326,137.91,137.89,0.05308223]
[1765396958732,2.71174791,137.99,137.92,6.5249]
[1765396959533,6.5227,137.97,137.92,6.5249]
[1765396959734,0.05136983,137.96,137.93,0.05496064]
[1765396959928,0.05136983,137.96,137.93,6.57916064]
[1765396960629,0.05136983,137.96,137.94,6.5239]
[1765396961427,0.05136983,137.96,137.93,0.05496064]
[1765396961428,2.71174791,137.99,137.95,6.5233]
[1765396961633,101.3903,138.07,137.96,162.9458]
[1765396961844,101.3974,138.06,137.96,169.95182897]
[1765396962027,6.5194,138.04,137.98,6.522]
[1765396962336,101.4079,138.05,137.96,61.48]
[1765396962523,0.03667668,138.02,138.0,0.04978378]
[1765396964228,101.4449,138.0,137.89,101.5196]
[1765396964424,101.4449,138.0,137.89,162.9796]
[1765396964425,108.45092897,138.0,137.89,162.9796]
[1765396964836,108.47212897,137.97,137.87,61.46]
[1765396965036,101.4717,137.96,137.87,61.46]
[1765396965240,6.57754953,137.93,137.9,0.04826504]
[1765396965632,0.05284953,137.93,137.9,0.04826504]
[1765396965832,6.57754953,137.93,137.9,0.04826504]
[1765396966435,108.51622897,137.91,137.82,6.5295]
[1765396966742,101.497,137.93,137.82,101.5733]
[1765396966941,6.5257,137.91,137.85,6.5281]
[1765396967538,0.0538126,137.89,137.87,0.04806816]
[1765396969238,0.0538126,137.89,137.82,61.46]
[1765396969239,108.58634157,137.89,137.82,61.46]
[1765396969543,101.5298,137.88,137.82,61.46]
[1765396969739,6.5289,137.84,137.82,61.46]
[1765396970337,0.05323436,137.84,137.82,68.04245211]
[1765396971245,6.5261,137.9,137.84,6.5285]
[1765396971444,101.4958,137.93,137.84,6.5285]
[1765396971948,6.5266,137.89,137.82,67.9896]
[1765396972239,0.05030761,137.87,137.84,0.05270788]
[1765396972945,6.57780761,137.87,137.84,0.05270788]
[1765396974747,0.05030761,137.87,137.84,0.05270788]
[1765396976238,0.05030761,137.87,137.84,101.60830788]
[1765396976740,101.5476,137.86,137.72,3.42854486]
[1765396976947,7.00602897,137.85,137.77,101.6034]
[1765396977244,108.53942897,137.88,137.77,101.6034]
[1765396977440,108.56372897,137.85,137.74,163.1073]
[1765396977647,101.5669,137.83,137.74,61.48]
[1765396977847,0.05196397,137.8,137.77,0.04826224]
[1765396980046,6.58276397,137.8,137.77,0.04826224]
[1765396980248,0.05196397,137.8,137.77,0.04826224]
[1765396981141,101.6057,137.78,137.72,3.42854486]
[1765396981340,101.5589,137.84,137.73,101.6394]
[1765396981540,101.5591,137.84,137.73,108.64542897]
[1765396981746,101.5682,137.83,137.72,128.12338728]
[1765396981941,108.58802897,137.81,137.72,3.42854486]
[1765396982143,0.05197355,137.78,137.75,0.04929465]
[1765396983353,0.05197355,137.78,137.76,6.5325]
[1765396983836,6.5281,137.86,137.79,6.5308]
[1765396984037,7.00602897,137.89,137.79,101.5938]
[1765396984240,101.5,137.92,137.82,101.5735]
[1765396984953,0.05473306,137.88,137.86,0.04900138]
[1765396985153,7.17639897,137.96,137.86,101.59106748]
[1765396985349,6.5238,137.95,137.88,6.5265]
[1765396985740,0.17037,137.96,137.88,101.528]
[1765396985946,6.69357,137.96,137.9,6.5256]
[1765396986347,0.04818441,137.94,137.92,0.05582479]
[1765396987046,101.5093,137.91,137.79,101.5919]
[1765396987251,7.00602897,137.9,137.83,101.5641]
[1765396987459,7.00602897,137.93,137.85,101.5504]
[1765396987859,6.5243,137.94,137.87,6.5271]
[1765396988060,0.05402562,137.92,137.89,0.04802688]
[1765396989757,6.57922562,137.92,137.89,0.04802688]
[1765396990060,0.05402562,137.92,137.89,0.04802688]
[1765396991451,6.57922562,137.92,137.89,0.04802688]
[1765396991652,0.05402562,137.92,137.89,0.04802688]
[1765396995174,0.05402562,137.92,137.89,6.57412688]
[1765396995478,7.00602897,138.02,137.89,101.56692688]
[1765396995680,7.00602897,138.02,137.9,101.514]
[1765396996173,6.5223,137.98,137.92,6.5248]
[1765396996374,7.00602897,138.02,137.92,6.5248]
[1765396996375,0.05291964,137.96,137.94,0.0547825]
[1765396996681,0.04641629,137.96,137.94,0.0547825]
[1765396996865,6.5215,138.0,137.94,0.0547825]
[1765396997066,101.4222,138.03,137.94,61.5]
[1765396997474,101.4146,138.04,137.94,68.50602897]
[1765396997967,0.0530147,138.0,137.98,0.0486846]
[1765397000972,0.0530147,138.0,137.98,6.5705846]
[1765397001178,101.3938,138.07,137.98,6.5705846]
[1765397001485,101.3938,138.07,137.98,6.5219]
[1765397002183,101.3938,138.07,138.01,0.04801039]
[1765397002184,0.02574544,138.04,138.01,0.04801039]
[1765397003780,6.5177,138.08,138.01,61.50801039]
[1765397003981,101.3572,138.12,138.01,61.50801039]
[1765397004179,6.5168,138.1,138.04,6.5191]
[1765397004783,6.5168,138.1,138.06,0.05534639]
[1765397004980,101.3484,138.13,138.06,0.05534639]
[1765397005888,101.361,138.11,138.06,0.05534639]
[1765397006578,101.3331,138.15,138.06,0.05534639]
[1765397006779,101.3331,138.15,138.09,0.04935677]
[1765397007175,101.2971,138.2,138.09,61.50935677]
[1765397007390,101.303,138.19,138.13,0.05165884]
[1765397007589,6.5138,138.16,138.13,0.05165884]
[1765397007793,101.3097,138.18,138.13,0.05165884]
[1765397008087,101.303,138.19,138.13,0.05165884]
[1765397008689,6.5129,138.18,138.13,0.05165884]
[1765397009282,101.2833,138.22,138.13,6.56655884]
[1765397009482,101.2833,138.22,138.16,0.0457929]
[1765397009790,101.2873,138.21,138.16,0.0457929]
[1765397010087,6.5123,138.19,138.16,0.0457929]
[1765397010288,101.2729,138.23,138.16,0.0457929]
[1765397011590,101.28,138.22,138.16,0.0457929]
[1765397011785,6.5129,138.18,138.16,0.0457929]
[1765397013689,6.512,138.2,138.16,0.0457929]
[1765397013987,101.2889,138.21,138.16,0.0457929]
[1765397014291,6.5128,138.18,138.16,0.0457929]
[1765397014495,101.2889,138.21,138.16,0.0457929]
[1765397014891,101.2804,138.22,138.16,0.0457929]
[1765397015091,101.2729,138.23,138.16,0.0457929]
[1765397015391,101.2609,138.25,138.16,0.0457929]
[1765397015693,6.511,138.22,138.19,0.05364181]
[1765397016597,6.5114,138.21,138.19,0.05364181]
[1765397016987,101.2679,138.24,138.19,0.05364181]
[1765397017184,6.5106,138.23,138.19,0.05364181]
[1765397017387,101.2388,138.28,138.19,0.05364181]
[1765397017595,101.243,138.27,138.22,0.0544303]
[1765397017803,6.5102,138.24,138.22,0.0544303]
[1765397017989,101.2801,138.22,138.13,61.4]
[1765397018495,101.2728,138.23,138.13,162.7418]
[1765397018690,101.27,138.24,138.13,162.7418]
[1765397018890,0.0544303,138.2,138.17,0.04656333]
[1765397019096,6.5162,138.11,138.04,6.519]
[1765397019289,101.3773,138.09,137.98,101.4538]
[1765397019490,101.3841,138.08,137.99,61.38]
[1765397019690,101.3633,138.11,138.0,101.4382]
[1765397019889,101.3538,138.12,138.01,101.4334]
[1765397020188,0.04663789,138.08,138.05,0.05083561]
[1765397021589,101.3349,138.15,138.05,0.05083561]
[1765397021789,6.5143,138.15,138.06,101.3962]
[1765397021989,6.5143,138.15,138.07,101.3895]
[1765397022299,6.5143,138.15,138.06,101.3962]
[1765397022689,6.5143,138.15,138.09,0.04628372]
[1765397022690,0.05272786,138.12,138.09,0.04628372]
[1765397022889,0.05272786,138.12,138.1,61.38]
[1765397025295,0.00272786,138.12,138.1,61.38]
[1765397025500,101.3078,138.19,138.1,61.38]
[1765397026201,6.5132,138.17,138.11,6.5158]
[1765397026492,101.3091,138.18,138.13,0.04791589]
[1765397026697,101.3091,138.18,138.14,61.38]
[1765397027084,6.5129,138.18,138.14,61.38]
[1765397027294,101.3078,138.19,138.14,61.38]
[1765397027899,6.5133,138.17,138.14,61.38]
[1765397028196,101.3091,138.18,138.14,61.38]
[1765397028399,6.5143,138.15,138.14,61.38]
[1765397028695,6.5143,138.15,138.13,0.04791589]
[1765397033195,113.46339919,138.18,138.13,0.04791589]
[1765397033902,6.5138,138.16,138.13,0.04791589]
[1765397034607,6.513,138.18,138.13,0.04791589]
[1765397035207,6.5121,138.2,138.13,0.04791589]
[1765397036203,6.5123,138.19,138.14,6.5144]
[1765397036404,6.5123,138.19,138.15,0.05068634]
[1765397037703,101.302,138.19,138.15,0.05068634]
[1765397038409,101.2956,138.2,138.15,0.05068634]
[1765397039298,101.2753,138.23,138.15,0.05068634]
[1765397039494,101.2798,138.22,138.15,0.05068634]
[1765397040200,101.2798,138.22,138.16,61.38]
[1765397040398,101.2748,138.23,138.17,61.38]
[1765397040593,101.2811,138.22,138.19,0.04786536]
[1765397040798,101.3367,138.15,138.08,62.0]
[1765397041003,101.3367,138.15,138.08,61.38]
[1765397041308,101.3427,138.14,138.06,6.5182]
[1765397041509,101.3547,138.12,138.0,101.4376]
[1765397041704,101.3547,138.12,138.01,61.38]
[1765397041904,0.05195992,138.08,138.05,0.05489276]
[1765397042205,101.3236,138.16,138.06,61.38]
[1765397042509,101.3102,138.18,138.07,101.3884]
[1765397043002,6.5134,138.17,138.11,6.5159]
[1765397043203,101.3119,138.18,138.07,101.3884]
[1765397043398,101.3078,138.19,138.13,0.05140968]
[1765397043911,101.28,138.22,138.13,0.05140968]
[1765397044109,101.28,138.22,138.16,0.05442563]
[1765397044306,101.28,138.22,138.17,61.38]
[1765397044507,6.5112,138.22,138.17,61.38]
[1765397044708,101.2726,138.23,138.17,61.38]
[1765397045010,101.2802,138.22,138.19,0.05324213]
[1765397045510,6.5117,138.21,138.19,0.05324213]
[1765397048012,18.66599919,138.21,138.19,0.05324213]
[1765397048210,6.513,138.18,138.15,61.38]
[1765397048608,101.2756,138.23,138.15,61.38]
[1765397049006,101.289,138.21,138.15,61.38]
[1765397049210,0.05039785,138.19,138.17,0.04907706]
[1765397049714,6.56289785,138.19,138.17,0.04907706]
[1765397050314,0.05039785,138.19,138.17,0.04907706]
[1765397050714,113.37869919,138.3,138.17,102.80227706]
[1765397051013,101.2289,138.29,138.18,101.3071]
[1765397051223,6.5095,138.25,138.17,101.3132]
[1765397051607,6.5105,138.23,138.18,61.38]
[1765397051802,6.5105,138.23,138.19,0.05407363]
[1765397052517,101.2289,138.29,138.19,0.05407363]
[1765397052708,101.2366,138.28,138.23,0.0541827]
[1765397053309,6.5096,138.25,138.23,0.0541827]
[1765397055210,6.5088,138.27,138.23,0.0541827]
[1765397055410,101.2363,138.28,138.23,0.0541827]
[1765397056111,101.2398,138.28,138.23,61.4141827]
[1765397056510,6.5096,138.25,138.23,61.4141827]
[1765397057817,6.5096,138.25,138.23,0.0541827]
[1765397058415,101.2398,138.28,138.23,0.0541827]
[1765397058614,101.2289,138.29,138.23,0.0541827]
[1765397059020,6.509,138.26,138.23,0.0541827]
[1765397059724,6.5083,138.28,138.23,0.0541827]
[1765397059926,101.2289,138.29,138.23,0.0541827]
[1765397060225,101.2155,138.31,138.23,0.0541827]
[1765397060425,101.2013,138.33,138.23,0.0541827]
[1765397060624,101.2013,138.33,138.27,0.05271408]
[1765397060817,101.1872,138.35,138.27,0.05271408]
[1765397061123,101.1872,138.35,138.27,6.56091408]
[1765397061625,101.1772,138.36,138.28,6.5079]
[1765397061826,101.1772,138.36,138.31,0.05240236]
[1765397062020,101.1845,138.35,138.31,0.05240236]
[1765397062223,101.1703,138.37,138.31,0.05240236]
[1765397062527,101.1776,138.36,138.31,0.05240236]
[1765397063021,101.1642,138.38,138.31,0.05240236]
[1765397063223,101.1642,138.38,138.33,0.05537977]
[1765397063626,6.5048,138.35,138.33,0.05537977]
[1765397064121,6.5048,138.35,138.22,101.2758]
[1765397064122,101.2073,138.32,138.22,101.2758]
[1765397064326,6.5074,138.3,138.24,6.5096]
[1765397065128,0.05321452,138.28,138.26,0.05330808]
[1765397065520,0.05321452,138.28,138.26,61.39330808]
[1765397067940,101.1731,138.37,138.26,162.63930808]
[1765397068136,101.1731,138.37,138.26,162.586]
[1765397068533,6.504,138.37,138.3,6.5068]
[1765397069040,101.1581,138.39,138.32,0.04740927]
[1765397069636,101.171,138.37,138.32,0.04740927]
[1765397070233,6.5044,138.36,138.32,0.04740927]
[1765397070636,101.171,138.37,138.32,0.04740927]
[1765397071433,101.163,138.38,138.32,0.04740927]
[1765397071633,101.1581,138.39,138.32,0.04740927]
[1765397071837,101.1512,138.4,138.32,0.04740927]
[1765397072037,6.503,138.39,138.33,6.5054]
[1765397072243,6.503,138.39,138.35,0.05333246]
[1765397072836,6.5021,138.41,138.35,0.05333246]
[1765397073040,101.0927,138.48,138.37,101.1696]
[1765397073241,101.0978,138.47,138.41,0.05379581]
[1765397073441,6.5007,138.44,138.41,0.05379581]
[1765397073649,101.1201,138.44,138.41,0.05379581]
[1765397073842,101.0978,138.47,138.41,0.05379581]
[1765397074250,101.1201,138.44,138.41,0.05379581]
[1765397075047,6.5011,138.43,138.41,0.05379581]
[1765397075551,6.5002,138.45,138.41,0.05379581]
[1765397076342,6.4992,138.47,138.41,0.05379581]
[1765397076841,101.0901,138.48,138.41,0.05379581]
[1765397077042,6.4997,138.46,138.41,0.05379581]
[1765397078244,6.4997,138.46,138.41,61.35379581]
[1765397078553,101.0855,138.49,138.41,67.85549581]
[1765397078746,101.0925,138.48,138.41,61.35379581]
[1765397079946,101.119,138.44,138.41,0.05379581]
[1765397080652,6.5011,138.43,138.41,0.05379581]
[1765397081545,6.503,138.39,138.35,61.28]
[1765397082147,101.1277,138.43,138.35,61.28]
[1765397082342,101.119,138.44,138.35,61.28]
[1765397082657,0.04950887,138.41,138.38,0.04758879]
[1765397084155,6.5024,138.4,138.38,0.04758879]
[1765397087350,0.04950887,138.41,138.38,0.04758879]
[1765397089355,6.5,138.45,138.38,0.04758879]
[1765397089558,6.5,138.45,138.37,108.12421882]
[1765397090360,6.5,138.45,138.4,6.55706823]
[1765397090556,6.5,138.45,138.41,61.28]
[1765397090860,101.1139,138.45,138.4,0.05486823]
[1765397091254,6.5016,138.42,138.4,0.05486823]
[1765397096065,13.45941882,138.42,138.4,0.05486823]
[1765397096565,6.504,138.37,138.31,6.5062]
[1765397096766,101.1629,138.38,138.27,101.2396]
[1765397096966,101.1629,138.38,138.28,61.28]
[1765397097166,101.1629,138.38,138.29,61.28]
[1765397097566,0.04659951,138.35,138.32,0.04908406]
[1765397097870,6.55139951,138.35,138.32,0.04908406]
[1765397098862,6.5052,138.34,138.32,0.04908406]
[1765397099364,0.04659951,138.35,138.32,0.04908406]
[1765397100062,6.5029,138.39,138.32,0.04908406]
[1765397100262,101.1271,138.43,138.35,6.5045]
[1765397100767,6.5017,138.42,138.33,101.196]
[1765397101158,6.502,138.41,138.36,6.55373866]
[1765397101359,6.502,138.41,138.37,61.28]
[1765397102065,6.5025,138.4,138.37,61.28]
[1765397102268,101.1385,138.42,138.37,61.3343916]
[1765397102457,101.1411,138.41,138.37,61.3343916]
[1765397102660,6.5029,138.39,138.37,61.3343916]
[1765397103857,101.1001,138.47,138.37,61.3343916]
[1765397104063,101.092,138.48,138.41,0.04859708]
[1765397104264,6.4983,138.49,138.41,0.04859708]
[1765397104463,6.4983,138.49,138.43,6.5008]
[1765397104768,6.4983,138.49,138.45,0.04781321]
[1765397105269,101.0768,138.5,138.45,0.04781321]
[1765397105762,6.4992,138.47,138.45,0.04781321]
[1765397106858,6.5012,138.43,138.38,61.28]
[1765397107053,101.0986,138.47,138.39,6.5027]
[1765397107255,6.95781882,138.49,138.38,61.28]
[1765397107461,6.4996,138.46,138.38,61.28]
[1765397107862,0.05541108,138.43,138.41,0.04568735]
[1765397108366,101.0986,138.47,138.41,0.04568735]
[1765397108568,101.115,138.45,138.41,0.04568735]
[1765397108769,101.1474,138.41,138.29,6.95781882]
[1765397108962,101.1474,138.41,138.31,61.28]
[1765397109469,101.1373,138.42,138.31,162.4908]
[1765397109770,0.05433152,138.38,138.35,0.05382643]
[1765397110270,0.05433152,138.38,138.36,6.5041]
[1765397110471,0.00433152,138.38,138.36,6.5041]
[1765397111272,0.00433152,138.38,138.35,0.05382643]
[1765397112270,101.17023152,138.38,138.35,0.05382643]
[1765397112663,6.5038,138.37,138.35,0.05382643]
[1765397112863,0.00433152,138.38,138.35,0.05382643]
[1765397115675,6.50783152,138.38,138.35,0.05382643]
[1765397116276,6.50783152,138.38,138.35,61.33382643]
[1765397116865,6.50783152,138.38,138.35,0.05382643]
[1765397117077,0.00433152,138.38,138.35,0.05382643]
[1765397117472,108.06761882,138.46,138.35,0.05382643]
[1765397117777,101.0925,138.48,138.37,101.1689]
[1765397117970,101.0877,138.49,138.38,101.1613]
[1765397118176,101.0765,138.5,138.42,6.5012]
[1765397118376,101.0765,138.5,138.45,0.04997741]
[1765397118678,6.4991,138.47,138.45,0.04997741]
[1765397120271,6.4984,138.49,138.45,0.04997741]
[1765397121179,101.0826,138.49,138.45,0.04997741]
[1765397121679,101.0902,138.48,138.45,0.04997741]
[1765397122664,6.4992,138.47,138.45,0.04997741]
[1765397124576,6.4984,138.49,138.45,0.04997741]
[1765397124982,101.0486,138.54,138.45,0.04997741]
[1765397125178,101.0486,138.54,138.48,0.04870248]
[1765397125384,101.061,138.52,138.48,0.04870248]
[1765397125984,101.0537,138.53,138.48,0.04870248]
[1765397126480,6.4977,138.5,138.48,0.04870248]
[1765397127681,6.4974,138.51,138.48,0.04870248]
[1765397127884,101.0617,138.52,138.48,0.04870248]
[1765397128573,6.498,138.5,138.48,0.04870248]
[1765397129185,6.4999,138.46,138.42,61.26]
[1765397130183,0.04801111,138.45,138.43,0.05360178]
[1765397130386,0.04581482,138.45,138.43,0.05180422]
[1765397130884,6.5005,138.44,138.43,0.05180422]
[1765397134386,101.141,138.41,138.32,62.0]
[1765397134591,101.1484,138.4,138.28,115.66215074]
[1765397134783,101.1484,138.4,138.32,61.26]
[1765397134983,6.5038,138.37,138.32,61.26]
[1765397135487,0.04574443,138.36,138.33,0.04762744]
[1765397135686,0.04574443,138.36,138.34,6.5051]
[1765397135890,101.1269,138.43,138.33,1.48762744]
[1765397136190,101.1269,138.43,138.32,162.4611]
[1765397136391,101.126,138.43,138.36,6.504]
[1765397136784,0.04657473,138.41,138.38,0.0476885]
[1765397137883,6.54867473,138.41,138.38,0.0476885]
[1765397138287,0.04657473,138.41,138.38,0.0476885]
[1765397138889,0.04657473,138.41,138.39,61.26]
[1765397141897,6.54847473,138.41,138.39,61.26]
[1765397142196,0.04657473,138.41,138.39,61.26]
[1765397142393,0.04657473,138.41,138.39,67.7626]
[1765397145893,101.0781,138.5,138.39,163.852]
[1765397146098,101.0781,138.5,138.39,162.412]
[1765397146300,6.4989,138.48,138.41,101.1395]
[1765397146502,6.4989,138.48,138.4,101.145]
[1765397146800,6.4989,138.48,138.43,0.0479774]
[1765397147192,101.0749,138.5,138.43,6.5487774]
[1765397147603,6.4989,138.48,138.43,6.5487774]
[1765397147900,101.0704,138.51,138.43,6.5487774]
[1765397148596,6.4991,138.47,138.43,6.5487774]
[1765397148798,101.0983,138.47,138.43,0.0479774]
[1765397148997,101.1044,138.46,138.43,0.0479774]
[1765397149198,6.5001,138.45,138.43,0.0479774]
[1765397151700,6.5001,138.45,138.37,61.26]
[1765397151701,6.5027,138.4,138.37,61.26]
[1765397152106,101.1564,138.39,138.28,22.04433192]
[1765397152400,101.1416,138.41,138.3,162.4781]
[1765397152791,113.25531237,138.42,138.34,0.04643862]
[1765397152792,0.05370412,138.37,138.34,0.04643862]
[1765397153397,126.20681237,138.48,138.34,0.04643862]
[1765397153398,101.0887,138.49,138.34,1.48643862]
[1765397153599,101.099,138.47,138.39,6.5026]
[1765397153903,12.9939,138.52,138.39,6.5026]
[1765397153904,113.17201237,138.53,138.41,101.1398]
[1765397154402,6.4978,138.5,138.46,0.051685]
[1765397154799,101.0785,138.5,138.46,0.051685]
[1765397154996,12.11731237,138.53,138.46,0.051685]
[1765397155200,101.0489,138.54,138.46,0.051685]
[1765397155802,101.0474,138.54,138.46,0.051685]
[1765397156606,6.4978,138.5,138.46,0.051685]
[1765397156803,101.068,138.51,138.46,0.051685]
[1765397157704,6.4983,138.49,138.46,0.051685]
[1765397159207,6.4989,138.48,138.46,0.051685]
[1765397160809,101.0739,138.51,138.46,0.051685]
[1765397160810,6.4977,138.5,138.46,0.051685]
[1765397161805,6.4982,138.49,138.46,0.051685]
[1765397162005,101.0725,138.51,138.46,0.051685]
[1765397162201,101.0827,138.49,138.46,0.051685]
[1765397163704,6.4988,138.48,138.46,0.051685]
[1765397164409,101.0562,138.53,138.46,0.051685]
[1765397165211,101.0686,138.51,138.46,0.051685]
[1765397166910,6.4982,138.49,138.46,0.051685]
[1765397167407,6.4968,138.52,138.46,0.051685]
[1765397167615,101.0489,138.54,138.46,0.051685]
[1765397167811,202.0452,138.58,138.5,6.4976]
[1765397167812,101.0176,138.58,138.5,6.4976]
[1765397168005,101.0176,138.58,138.53,0.05536256]
[1765397168006,6.4955,138.55,138.53,0.05536256]
[1765397168325,101.0388,138.55,138.44,162.3539]
[1765397168706,6.4967,138.52,138.44,162.3539]
[1765397168909,101.0341,138.56,138.48,6.4985]
[1765397169209,0.05051233,138.53,138.51,0.04604442]
[1765397169510,6.54681233,138.53,138.51,0.04604442]
[1765397169902,0.05051233,138.53,138.51,0.04604442]
[1765397172006,6.54701233,138.53,138.51,0.04604442]
[1765397172316,0.05051233,138.53,138.45,61.24]
[1765397172516,101.0518,138.54,138.45,61.24]
[1765397172813,6.4971,138.52,138.45,61.24]
[1765397173018,101.0459,138.54,138.45,61.24]
[1765397173207,0.0504927,138.5,138.47,0.04999451]
[1765397173911,6.5481927,138.5,138.47,0.04999451]
[1765397174412,0.0504927,138.5,138.48,6.4984]
[1765397174717,0.0004927,138.5,138.48,6.4984]
[1765397175319,0.0004927,138.5,138.47,0.04999451]
[1765397176519,0.0004927,138.5,138.48,6.4984]
[1765397177221,0.0004927,138.5,138.47,0.04999451]
[1765397179825,6.4982927,138.5,138.47,0.04999451]
[1765397181424,0.0004927,138.5,138.47,0.04999451]
[1765397184128,0.0004927,138.5,138.47,61.26999451]
[1765397185225,0.0004927,138.5,138.47,67.76899451]
[1765397185727,0.0004927,138.5,138.47,61.26999451]
[1765397186229,6.4982,138.49,138.47,61.26999451]
[1765397187228,6.4982,138.49,138.47,0.04999451]
[1765397188026,0.0004927,138.5,138.47,0.04999451]
[1765397188423,0.0004927,138.5,138.48,6.4985]
[1765397188729,15.49942474,138.6,138.49,61.22]
[1765397188921,116.50422474,138.6,138.49,61.22]
[1765397189118,6.4945,138.57,138.49,162.2988]
[1765397189325,6.4945,138.57,138.5,101.0741]
[1765397189531,0.05145298,138.55,138.52,0.04760503]
[1765397190122,0.05145298,138.55,138.52,6.54390503]
[1765397190322,0.05145298,138.55,138.52,0.04760503]
[1765397190620,0.05145298,138.55,138.53,6.4961]
[1765397190823,3.38211237,138.6,138.52,0.04760503]
[1765397191623,6.4935,138.59,138.52,0.04760503]
[1765397192027,3.38211237,138.6,138.52,0.04760503]
[1765397192229,6.4939,138.58,138.54,6.4957]
[1765397192428,6.4939,138.58,138.55,0.04730489]
[1765397193224,9.87541237,138.6,138.55,6.54250489]
[1765397193424,9.87541237,138.6,138.55,0.04730489]
[1765397193930,9.87541237,138.6,138.55,61.26730489]
[1765397195931,9.87541237,138.6,138.55,67.76250489]
[1765397196135,3.38211237,138.6,138.55,61.26730489]
[1765397196533,9.87511237,138.6,138.56,6.4947]
[1765397196931,9.87511237,138.6,138.55,61.26730489]
[1765397197327,3.38211237,138.6,138.55,61.26730489]
[1765397199131,6.9394979,138.67,138.57,101.0232]
[1765397199430,100.9657,138.65,138.61,0.04898303]
[1765397199836,6.4916,138.63,138.61,0.04898303]
[1765397201135,100.9904,138.62,138.54,61.2]
[1765397201341,107.9376979,138.61,138.54,61.2]
[1765397201640,6.4945,138.57,138.54,61.2]
[1765397201835,101.0127,138.59,138.54,61.2]
[1765397202142,0.04898303,138.58,138.55,0.05393614]
[1765397204446,0.04898303,138.58,138.56,6.4945]
[1765397205044,0.04898303,138.58,138.55,0.05393614]
[1765397206445,6.4946,138.57,138.55,0.05393614]
[1765397207252,6.4963,138.53,138.45,101.1106]
[1765397207458,6.4963,138.53,138.46,61.2]
[1765397208153,6.4963,138.53,138.47,6.4987]
[1765397208352,0.04735737,138.51,138.49,0.04825124]
[1765397209046,6.4957,138.55,138.49,0.04825124]
[1765397209356,101.0143,138.59,138.48,101.0865]
[1765397209556,107.9419979,138.6,138.49,101.0818]
[1765397209759,6.4944,138.57,138.52,6.4966]
[1765397209952,6.9394979,138.6,138.52,61.2]
[1765397210149,6.54625581,138.57,138.55,0.04724248]
[1765397217767,101.0406,138.55,138.45,68.1394979]
[1765397217967,107.9657979,138.57,138.46,101.103]
[1765397218156,6.4953,138.55,138.47,101.0919]
[1765397218462,107.9442979,138.6,138.49,101.0809]
[1765397218660,0.0478308,138.56,138.53,0.05449541]
[1765397220851,0.0478308,138.56,138.54,6.4954]
[1765397221259,100.96,138.66,138.55,101.0378]
[1765397221461,6.4916,138.63,138.55,101.0378]
[1765397222167,0.04740701,138.6,138.58,0.0477277]
[1765397222364,0.04740701,138.6,138.58,6.5415277]
[1765397222866,0.04740701,138.6,138.59,61.2]
[1765397223963,100.9458,138.68,138.59,61.2]
[1765397223964,100.9458,138.68,138.6,6.4928]
[1765397224168,100.9379,138.69,138.59,61.2]
[1765397224569,6.4904,138.66,138.59,67.6932]
[1765397224770,6.4904,138.66,138.59,61.2]
[1765397225061,100.9524,138.67,138.61,0.04759448]
[1765397225268,100.9688,138.65,138.61,0.04759448]
[1765397225870,6.4917,138.63,138.61,0.04759448]
[1765397226763,100.9976,138.61,138.49,108.0186979]
[1765397227072,101.0023,138.6,138.5,61.2]